[Event "XVI Memorial Lezcano Montalvo 2024"]
[Site "Gran Canaria"]
[Date "2024.03.28"]
[Round "6.37"]
[White "Ascension Suarez, Joel"]
[Black "Gonzalez Ortega, Jose Miguel"]
[Result "1-0"]
[ECO "E01"]
[WhiteElo "1731"]
[BlackElo "1858"]
[Annotator "NA RC"]
[PlyCount "99"]
[EventDate "2024.03.23"]
[EventType "swiss"]
[EventCountry "ESP"]
[SourceTitle "playchess.com"]
[Source "ChessBase"]
[SourceQuality "1"]
[TimeControl "5400+30"]

1. Nf3 {[%emt 0:01:12]} Nf6 {[%emt 0:00:37]} 2. d4 {[%emt 0:00:21]} d5 {[%emt 0:00:27]} 3. c4 {[%emt 0:00:07]} e6 {[%emt 0:01:58]} 4. g3 {[%emt 0:00:06]} c6 {[%emt 0:02:25]} 5. Bg2 {[%emt 0:00:11]} Bd6 {[%emt 0:01:08]} 6. Nbd2 {[%emt 0:00:47]} Nbd7 {[%emt 0:00:43]} 7. O-O {[%emt 0:00:29]} O-O {[%emt 0:00:19]} 8. b3 {[%emt 0:00:12]} a5 {[%emt 0:01:17]} 9. a3 {[%emt 0:02:17]} b5 {[%emt 0:02:57]} 10. c5 {[%emt 0:01:05]} Bc7 {[%emt 0:00:03]} 11. Qc2 {[%emt 0:00:13]} e5 {[%emt 0:02:30]} 12. e4 {[%emt 0:00:49]} exd4 {[%emt 0:01:46]} 13. Nxd4 {[%emt 0:00:31]} Be5 {[%emt 0:01:39]} 14. Nxc6 {[%emt 0:01:49]} Qc7 {[%emt 0:00:26]} 15. Nxe5 {[%emt 0:00:30]} Qxe5 {[%emt 0:00:13]} 16. Bb2 {[%emt 0:00:30]} d4 {[%emt 0:02:53]} 17. f4 {[%emt 0:01:41]} Qe6 {[%emt 0:03:58]} 18. Bxd4 {[%emt 0:01:33]} Bb7 {[%emt 0:01:00]} 19. Rfe1 {[%emt 0:09:11]} Qa6 {[%emt 0:07:21]} 20. Bf1 {[%emt 0:02:38]} Qc6 {[%emt 0:02:06]} 21. a4 {[%emt 0:01:41]} bxa4 {[%emt 0:01:23]} 22. bxa4 {[%emt 0:01:26]} Ba6 {[%emt 0:00:51]} 23. Bxa6 {[%emt 0:02:44]} Rxa6 {[%emt 0:00:12]} 24. Qc4 {[%emt 0:02:08]} Re8 {[%emt 0:00:52]} 25. Qb5 {[%emt 0:00:39]} Qc8 {[%emt 0:02:13]} 26. e5 {[%emt 0:01:16]} Nh5 {[%emt 0:01:21]} 27. Ne4 {[%emt 0:01:53]} Rd8 {[%emt 0:05:15]} 28. Nd6 {[%emt 0:00:31]} Rxd6 {[%emt 0:02:01]} 29. cxd6 {[%emt 0:00:11]} Nf8 {[%emt 0:01:45]} 30. Rac1 {[%emt 0:01:23]} Qg4 {[%emt 0:00:58]} 31. Qe2 {[%emt 0:00:58]} Qg6 {[%emt 0:00:00]} 32. Be3 {[%emt 0:00:56]} Ne6 {[%emt 0:01:11]} 33. Qd2 {[%emt 0:01:36]} Qg4 {[%emt 0:00:26]} 34. d7 {[%emt 0:05:27]} Nf8 {[%emt 0:03:29]} 35. Rc7 {[%emt 0:02:31]} g6 {[%emt 0:02:05]} 36. Bc5 {[%emt 0:01:05]} Nxg3 {[%emt 0:05:36]} 37. hxg3 {[%emt 0:00:38]} Qxg3+ {[%emt 0:00:15]} 38. Kf1 {[%emt 0:00:50]} Qf3+ {[%emt 0:00:40]} 39. Bf2 {[%emt 0:00:45]} Qh3+ {[%emt 0:05:06]} 40. Kg1 {[%emt 0:02:08]} Kg7 {[%emt 0:01:27]} 41. Qc3 {[%emt 0:00:51]} Qe6 {[%emt 0:04:20]} 42. Rc6 {[%emt 0:00:34]} Qg4+ {[%emt 0:00:44]} 43. Kf1 {[%emt 0:00:18]} Ne6 {[%emt 0:00:46]} 44. Rxe6 {[%emt 0:07:40]} Qxe6 {[%emt 0:00:34]} 45. Rd1 {[%emt 0:01:31]} h5 {[%emt 0:00:40]} 46. Rd6 {[%emt 0:02:40]} Qf5 {[%emt 0:01:06]} 47. e6+ {[%emt 0:01:23]} Kh7 {[%emt 0:00:41]} 48. Qd3 {[%emt 0:00:55]} Qxd3+ {[%emt 0:01:06]} 49. Rxd3 {[%emt 0:00:05]} fxe6 {[%emt 0:00:00]} 50. Bb6 {[%emt 0:00:09]} 1-0

[Event "XVI Memorial Lezcano Montalvo 2024"]
[Site "Gran Canaria"]
[Date "2024.03.28"]
[Round "6.39"]
[White "Sarmiento Afonso, Santiago"]
[Black "Macias Reyes, Jose Luis"]
[Result "1-0"]
[ECO "A07"]
[WhiteElo "2023"]
[BlackElo "1677"]
[Annotator "NA RC"]
[PlyCount "61"]
[EventDate "2024.03.23"]
[EventType "swiss"]
[EventCountry "ESP"]
[SourceTitle "playchess.com"]
[Source "ChessBase"]
[SourceQuality "1"]
[TimeControl "5400+30"]

1. Nf3 {[%emt 0:00:14]} d5 {[%emt 0:00:16]} 2. d3 {[%emt 0:00:11]} Nf6 {[%emt 0:00:28]} 3. g3 {[%emt 0:00:32]} c6 {[%emt 0:00:42]} 4. Bg2 {[%emt 0:00:26]} Bf5 {[%emt 0:02:46]} 5. Nbd2 {[%emt 0:01:54]} Nbd7 {[%emt 0:05:03]} 6. Nh4 {[%emt 0:02:28]} Bg4 {[%emt 0:02:03]} 7. h3 {[%emt 0:01:33]} Bh5 {[%emt 0:01:49]} 8. c4 {[%emt 0:03:44]} e6 {[%emt 0:01:25]} 9. Qc2 {[%emt 0:04:59]} Bd6 {[%emt 0:03:46]} 10. g4 {[%emt 0:05:39]} Ng8 {[%emt 0:01:43]} 11. Ndf3 {[%emt 0:09:39]} Be7 {[%emt 0:03:55]} 12. cxd5 {[%emt 0:00:11]} exd5 {[%emt 0:02:33]} 13. Nf5 {[%emt 0:00:42]} Bg6 {[%emt 0:03:34]} 14. Nxg7+ {[%emt 0:02:55]} Kf8 {[%emt 0:00:56]} 15. Nf5 {[%emt 0:00:10]} Bxf5 {[%emt 0:02:10]} 16. gxf5 {[%emt 0:00:08]} f6 {[%emt 0:02:19]} 17. Nd4 {[%emt 0:02:40]} Qa5+ {[%emt 0:03:36]} 18. Bd2 {[%emt 0:01:17]} Bb4 {[%emt 0:01:17]} 19. Ne6+ {[%emt 0:01:04]} Kf7 {[%emt 0:00:19]} 20. Bxb4 {[%emt 0:02:01]} Qxb4+ {[%emt 0:00:23]} 21. Qd2 {[%emt 0:01:51]} Qxd2+ {[%emt 0:01:07]} 22. Kxd2 {[%emt 0:00:06]} Ne7 {[%emt 0:03:23]} 23. e4 {[%emt 0:02:48]} a5 {[%emt 0:02:27]} 24. Bf3 {[%emt 0:00:18]} h5 {[%emt 0:01:13]} 25. Rhg1 {[%emt 0:01:40]} Rag8 {[%emt 0:05:17]} 26. Rxg8 {[%emt 0:00:20]} Kxg8 {[%emt 0:00:57]} 27. Rg1+ {[%emt 0:00:10]} Kf7 {[%emt 0:00:22]} 28. Rg7+ {[%emt 0:04:28]} Ke8 {[%emt 0:00:11]} 29. Nf4 {[%emt 0:00:20]} Kf8 {[%emt 0:03:59]} 30. Rxe7 {[%emt 0:00:28]} Kxe7 {[%emt 0:00:11]} 31. Ng6+ {[%emt 0:51:04]} 1-0

[Event "XVI Memorial Lezcano Montalvo 2024"]
[Site "Gran Canaria"]
[Date "2024.03.28"]
[Round "6.40"]
[White "Perez Celis, Alba"]
[Black "Sanchez Arencibia, Heriberto"]
[Result "1-0"]
[ECO "C02"]
[WhiteElo "1854"]
[BlackElo "1636"]
[Annotator "NA RC"]
[PlyCount "101"]
[EventDate "2024.03.23"]
[EventType "swiss"]
[EventCountry "ESP"]
[SourceTitle "playchess.com"]
[Source "ChessBase"]
[SourceQuality "1"]
[TimeControl "5400+30"]

1. e4 {[%emt 0:06:59]} e6 {[%emt 0:00:04]} 2. d4 {[%emt 0:00:28]} d5 {[%emt 0:00:05]} 3. e5 {[%emt 0:00:40]} c5 {[%emt 0:00:04]} 4. c3 {[%emt 0:00:27]} Nc6 {[%emt 0:00:05]} 5. Nf3 {[%emt 0:00:34]} Qb6 {[%emt 0:00:03]} 6. a3 {[%emt 0:00:32]} c4 {[%emt 0:00:04]} 7. a4 {[%emt 0:04:22]} Bd7 {[%emt 0:03:45]} 8. g3 {[%emt 0:06:28]} Na5 {[%emt 0:00:07]} 9. Nbd2 {[%emt 0:01:44]} Ne7 {[%emt 0:00:18]} 10. Bh3 {[%emt 0:00:42]} h6 {[%emt 0:05:20]} 11. Nh4 {[%emt 0:01:34]} g5 {[%emt 0:03:29]} 12. Nhf3 {[%emt 0:02:36]} O-O-O {[%emt 0:04:07]} 13. Rb1 {[%emt 0:03:09]} Qc7 {[%emt 0:07:14]} 14. O-O {[%emt 0:02:43]} Kb8 {[%emt 0:00:10]} 15. Ne1 {[%emt 0:07:04]} Nc8 {[%emt 0:00:40]} 16. Ra1 {[%emt 0:00:54]} Nb6 {[%emt 0:01:56]} 17. Qc2 {[%emt 0:01:12]} Be7 {[%emt 0:02:10]} 18. Ng2 {[%emt 0:05:30]} h5 {[%emt 0:00:35]} 19. Ne3 {[%emt 0:00:14]} g4 {[%emt 0:00:22]} 20. Bg2 {[%emt 0:00:29]} Rdg8 {[%emt 0:00:11]} 21. Re1 {[%emt 0:00:31]} h4 {[%emt 0:00:23]} 22. Qd1 {[%emt 0:01:08]} hxg3 {[%emt 0:01:18]} 23. fxg3 {[%emt 0:00:20]} f5 {[%emt 0:14:55]} 24. exf6 {[%emt 0:00:25]} Bxf6 {[%emt 0:00:16]} 25. Nxg4 {[%emt 0:01:42]} Be7 {[%emt 0:10:54]} 26. Ne5 {[%emt 0:01:54]} Bd6 {[%emt 0:01:50]} 27. Ra2 {[%emt 0:05:06]} Bc8 {[%emt 0:05:21]} 28. Ndf3 {[%emt 0:06:23]} Qh7 {[%emt 0:05:23]} 29. Bf4 {[%emt 0:01:31]} Ka8 {[%emt 0:02:41]} 30. Qd2 {[%emt 0:03:35]} Nb3 {[%emt 0:02:06]} 31. Qf2 {[%emt 0:04:18]} Na5 {[%emt 0:01:27]} 32. Bf1 {[%emt 0:01:38]} Qf5 {[%emt 0:02:06]} 33. Bg2 {[%emt 0:03:29]} Qh7 {[%emt 0:01:55]} 34. Qe3 {[%emt 0:09:47]} Qf5 {[%emt 0:02:32]} 35. Rf1 {[%emt 0:01:01]} Qf8 {[%emt 0:04:55]} 36. Nh4 {[%emt 0:01:02]} Bxe5 {[%emt 0:01:53]} 37. Bxe5 {[%emt 0:00:28]} Qh6 {[%emt 0:00:16]} 38. Qe2 {[%emt 0:02:55]} Rh7 {[%emt 0:00:30]} 39. Raa1 {[%emt 0:14:26]} Qh5 {[%emt 0:04:19]} 40. Qxh5 {[%emt 0:00:00]} Rxh5 {[%emt 0:00:08]} 41. Rf7 {[%emt 0:00:00]} Nd7 {[%emt 0:02:55]} 42. Bc7 {[%emt 0:00:00]} b6 {[%emt 0:00:43]} 43. Re1 {[%emt 0:00:00]} Kb7 {[%emt 0:01:22]} 44. Bd6 {[%emt 0:00:00]} Rh6 {[%emt 0:00:55]} 45. Bf4 {[%emt 0:00:00]} Rf6 {[%emt 0:01:06]} 46. Re7 {[%emt 0:00:00]} Ka6 {[%emt 0:07:05]} 47. R1xe6 {[%emt 0:00:00]} Rxe6 {[%emt 0:00:37]} 48. Rxe6 {[%emt 0:00:00]} Nc5 {[%emt 0:00:46]} 49. Re7 {[%emt 0:00:00]} Nd3 {[%emt 0:00:29]} 50. Bxd5 {[%emt 0:00:00]} Nxf4 {[%emt 0:00:32]} 51. Bxg8 {[%emt 0:00:00]} 1-0

[Event "XVI Memorial Lezcano Montalvo 2024"]
[Site "Gran Canaria"]
[Date "2024.03.28"]
[Round "6.41"]
[White "Martinez Correa, Rafael"]
[Black "Rivero Reyes, Alejandro"]
[Result "0-1"]
[ECO "B50"]
[WhiteElo "1597"]
[BlackElo "1799"]
[Annotator "NA RC"]
[PlyCount "97"]
[EventDate "2024.03.23"]
[EventType "swiss"]
[EventCountry "ESP"]
[SourceTitle "playchess.com"]
[Source "ChessBase"]
[SourceQuality "1"]
[TimeControl "5400+30"]

1. e4 {[%emt 0:00:01]} c5 {[%emt 0:01:43]} 2. Nf3 {[%emt 0:00:27]} d6 {[%emt 0:00:07]} 3. Be2 {[%emt 0:00:06]} Nf6 {[%emt 0:00:11]} 4. c3 {[%emt 0:00:07]} Bd7 {[%emt 0:00:27]} 5. Qc2 {[%emt 0:00:42]} Qc7 {[%emt 0:00:11]} 6. O-O {[%emt 0:00:46]} g6 {[%emt 0:00:24]} 7. Re1 {[%emt 0:01:10]} Bg7 {[%emt 0:00:08]} 8. Bf1 {[%emt 0:00:34]} O-O {[%emt 0:00:49]} 9. d3 {[%emt 0:00:39]} e5 {[%emt 0:05:00]} 10. Nbd2 {[%emt 0:00:38]} Nc6 {[%emt 0:00:24]} 11. a4 {[%emt 0:00:28]} d5 {[%emt 0:00:58]} 12. exd5 {[%emt 0:00:19]} Nxd5 {[%emt 0:00:08]} 13. Nc4 {[%emt 0:00:52]} Rfe8 {[%emt 0:03:22]} 14. Be3 {[%emt 0:03:07]} Nxe3 {[%emt 0:01:02]} 15. Rxe3 {[%emt 0:00:38]} Re7 {[%emt 0:02:05]} 16. Nfd2 {[%emt 0:01:16]} Rd8 {[%emt 0:08:25]} 17. Ne4 {[%emt 0:01:03]} b6 {[%emt 1:13:36]} 18. Rae1 {[%emt 0:03:54]} Bf5 {[%emt 0:00:00]} 19. h3 {[%emt 0:04:10]} Red7 {[%emt 0:00:00]} 20. Rd1 {[%emt 0:02:28]} Be6 {[%emt 0:00:00]} 21. Ree1 {[%emt 0:01:38]} h6 {[%emt 0:00:00]} 22. Ned2 {[%emt 0:03:48]} a6 {[%emt 0:00:00]} 23. Nf3 {[%emt 0:02:37]} b5 {[%emt 0:00:00]} 24. Ncd2 {[%emt 0:00:55]} Ne7 {[%emt 0:00:00]} 25. c4 {[%emt 0:05:04]} bxc4 {[%emt 0:00:00]} 26. Nxc4 {[%emt 0:01:04]} Nc6 {[%emt 0:00:00]} 27. Qe2 {[%emt 0:03:03]} Nd4 {[%emt 0:00:00]} 28. Nxd4 {[%emt 0:00:57]} exd4 {[%emt 0:00:00]} 29. Rc1 {[%emt 0:02:10]} h5 {[%emt 0:00:00]} 30. Qd2 {[%emt 0:03:02]} Rb8 {[%emt 0:00:00]} 31. a5 {[%emt 0:02:26]} Kh7 {[%emt 0:00:00]} 32. Ra1 {[%emt 0:03:05]} Bxc4 {[%emt 0:00:00]} 33. dxc4 {[%emt 0:00:21]} d3 {[%emt 0:00:00]} 34. Ra2 {[%emt 0:01:37]} Bh6 {[%emt 0:00:00]} 35. Qd1 {[%emt 0:01:27]} d2 {[%emt 0:00:00]} 36. Re4 {[%emt 0:51:51]} Re7 {[%emt 0:09:30]} 37. Rxe7 {[%emt 0:00:00]} Qxe7 {[%emt 0:00:00]} 38. Be2 {[%emt 0:00:00]} Re8 {[%emt 0:00:00]} 39. Kf1 {[%emt 0:00:00]} Qe5 {[%emt 0:00:00]} 40. g3 {[%emt 0:00:00]} Qe4 {[%emt 0:00:00]} 41. f3 {[%emt 0:00:00]} Qe5 {[%emt 0:00:00]} 42. f4 {[%emt 0:00:00]} Qe4 {[%emt 0:00:00]} 43. b3 {[%emt 0:00:00]} Qh1+ {[%emt 0:00:00]} 44. Kf2 {[%emt 0:00:00]} Qh2+ {[%emt 0:00:00]} 45. Kf3 {[%emt 0:00:00]} h4 {[%emt 0:00:00]} 46. gxh4 {[%emt 0:00:00]} Qxh3+ {[%emt 0:00:00]} 47. Kf2 {[%emt 0:00:00]} Bxf4 {[%emt 0:00:00]} 48. Rxd2 {[%emt 0:00:00]} Be3+ {[%emt 0:00:00]} 49. Ke1 {[%emt 0:06:30]} 0-1

[Event "XVI Memorial Lezcano Montalvo 2024"]
[Site "Gran Canaria"]
[Date "2024.03.28"]
[Round "6.42"]
[White "Almeida Afonso, Dolores Francisca"]
[Black "Grube, Kurt"]
[Result "0-1"]
[ECO "B30"]
[WhiteElo "1572"]
[BlackElo "1773"]
[Annotator "NA RC"]
[PlyCount "56"]
[EventDate "2024.03.23"]
[EventType "swiss"]
[EventCountry "ESP"]
[SourceTitle "playchess.com"]
[Source "ChessBase"]
[SourceQuality "1"]
[TimeControl "5400+30"]

1. e4 {[%emt 0:00:06]} c5 {[%emt 0:00:05]} 2. Nf3 {[%emt 0:00:40]} Nc6 {[%emt 0:00:09]} 3. Nc3 {[%emt 0:00:47]} e6 {[%emt 0:00:19]} 4. Bc4 {[%emt 0:01:32]} a6 {[%emt 0:01:18]} 5. a3 {[%emt 0:00:59]} Nd4 {[%emt 0:02:36]} 6. d3 {[%emt 0:04:52]} b5 {[%emt 0:05:58]} 7. Ba2 {[%emt 0:01:09]} Be7 {[%emt 0:00:31]} 8. Be3 {[%emt 0:00:36]} Nxf3+ {[%emt 0:04:13]} 9. Qxf3 {[%emt 0:02:11]} Bb7 {[%emt 0:00:15]} 10. Qg3 {[%emt 0:03:55]} d5 {[%emt 0:08:49]} 11. exd5 {[%emt 0:10:58]} exd5 {[%emt 0:00:27]} 12. d4 {[%emt 0:02:58]} Bf6 {[%emt 0:11:02]} 13. Rd1 {[%emt 0:04:06]} c4 {[%emt 0:04:41]} 14. O-O {[%emt 0:05:55]} Ne7 {[%emt 0:00:02]} 15. Bg5 {[%emt 0:10:29]} Bxg5 {[%emt 0:03:54]} 16. Qxg5 {[%emt 0:00:09]} O-O {[%emt 0:00:20]} 17. Ne2 {[%emt 0:03:19]} Ng6 {[%emt 0:01:56]} 18. Qg3 {[%emt 0:04:48]} Qf6 {[%emt 0:09:59]} 19. c3 {[%emt 0:00:46]} Bc8 {[%emt 0:03:31]} 20. Bb1 {[%emt 0:00:33]} Bf5 {[%emt 0:03:28]} 21. Bxf5 {[%emt 0:09:27]} Qxf5 {[%emt 0:00:11]} 22. Rd2 {[%emt 0:00:33]} Rfe8 {[%emt 0:00:55]} 23. f4 {[%emt 0:15:57]} Re4 {[%emt 0:06:54]} 24. Rf3 {[%emt 0:01:27]} Rae8 {[%emt 0:01:57]} 25. Qf2 {[%emt 0:05:38]} R4e7 {[%emt 0:06:47]} 26. h3 {[%emt 0:00:22]} h6 {[%emt 0:05:32]} 27. Ng3 {[%emt 0:00:31]} Qb1+ {[%emt 0:01:11]} 28. Qf1 {[%emt 0:00:59]} Re1 {[%emt 0:17:30]} 0-1

[Event "XVI Memorial Lezcano Montalvo 2024"]
[Site "Gran Canaria"]
[Date "2024.03.29"]
[Round "7.1"]
[White "Kurajica, Bojan"]
[Black "Larino Nieto, David"]
[Result "0-1"]
[ECO "A54"]
[WhiteElo "2444"]
[BlackElo "2365"]
[Annotator "TA"]
[PlyCount "38"]
[EventDate "2024.03.23"]
[EventType "swiss"]
[EventCountry "ESP"]
[SourceTitle "playchess.com"]
[Source "ChessBase"]
[SourceQuality "1"]
[TimeControl "5400+30"]

{[%evp 16,38,0,0,15,0,0,0,0,16,21,-65,-62,-75,-91,-89,-36,-80,-63,-187,-174,-218,-206,-222,-216]} 1. d4 {[%emt 0:00:07]} d6 {[%emt 0:04:12]} 2. Nf3 {[%emt 0:00:13]} Nd7 {[%emt 0:00:09]} 3. g3 {[%emt 0:03:13]} e5 {[%emt 0:00:07]} 4. c4 {[%emt 0:00:17]} c6 {[%emt 0:04:55][%cal Bc7c6,Bc6d5][%mdl 32]} 5. Nc3 {[%emt 0:00:08]} Ngf6 {[%emt 0:02:14]} 6. Bg2 {[%emt 0:02:03]} e4 {[%emt 0:03:34]} 7. Ng5 {[%emt 0:00:33]} d5 {[%emt 0:00:31]} 8. cxd5 {[%emt 0:01:49]} cxd5 {[%emt 0:00:01]} 9. Qb3 {[%emt 0:04:40]} Nb6 {[%emt 0:00:33]} 10. f3 {[%emt 0:00:45][%cal Rf3e4]} h6 {[%emt 0:02:26]} 11. Nxf7 {[%emt 0:02:46]} Kxf7 {[%emt 0:00:27] The position is equal.} 12. fxe4 {[%emt 0:00:07][%cal Oe1g1] 0-0! is the strong threat.} Be6 {[%emt 0:07:35] Strongly threatening ...dxe4.} 13. exd5 {[%emt 0:03:49]} (13. e5 $11) 13... Nbxd5 $15 {[%emt 0:06:02] White must now prevent ...Bb4.} 14. Qxb7+ {[%emt 0:00:29]} Be7 {[%emt 0:00:30][%cal Od5b4]} 15. O-O {[%emt 0:01:54]} Nb6 {[%emt 0:14:09]} ({Black should play} 15... Rb8 $17 16. Qxa7 Nxc3 17. bxc3 Bd5) 16. Qe4 {[%emt 0:07:56]} Qd7 {[%emt 0:01:25]} 17. Qf4 {[%emt 0:10:51] [#]} (17. a4 $15 Rac8 18. Qd3) 17... Rac8 $1 $19 {[%emt 0:05:08] Black is clearly better.} 18. e4 {[%emt 0:01:56]} Qxd4+ {[%emt 0:00:53]} 19. Be3 {[%emt 0:00:15] [#]} Qxe3+ $3 {[%emt 0:00:15][%mdl 512] Weighted Error Value: White=0.40/Black=0.12 (very precise) .  Mistake:       	White=2     	Black=1      Inaccurate:     	White=1     	---        OK:         	White=2     	Black=3      Best:        	White=1     	Black=2      Strong:       	---       	Black=1      Brilliant:      	---       	Black=1} 0-1

[Event "XVI Memorial Lezcano Montalvo 2024"]
[Site "Gran Canaria"]
[Date "2024.03.29"]
[Round "7.4"]
[White "Akhvlediani, Irakli"]
[Black "Hernandez Leon, Alberto"]
[Result "1-0"]
[ECO "D36"]
[WhiteElo "2356"]
[BlackElo "2207"]
[Annotator "RC"]
[PlyCount "103"]
[EventDate "2024.03.23"]
[EventType "swiss"]
[EventCountry "ESP"]
[SourceTitle "playchess.com"]
[Source "ChessBase"]
[SourceQuality "1"]
[TimeControl "5400+30"]

1. c4 {[%emt 0:01:18]} e6 {[%emt 0:01:08]} 2. Nc3 {[%emt 0:00:11]} d5 {[%emt 0:01:06]} 3. d4 {[%emt 0:00:08]} Nf6 {[%emt 0:01:02]} 4. cxd5 {[%emt 0:00:22]} exd5 {[%emt 0:00:11]} 5. Bg5 {[%emt 0:00:04]} Be7 {[%emt 0:01:17]} 6. e3 {[%emt 0:00:12]} c6 {[%emt 0:00:10]} 7. Bd3 {[%emt 0:00:21]} Nbd7 {[%emt 0:00:51]} 8. Qc2 {[%emt 0:00:18]} Nh5 {[%emt 0:00:59]} 9. Bxe7 {[%emt 0:00:05]} Qxe7 {[%emt 0:00:04]} 10. Nge2 {[%emt 0:00:06]} g6 {[%emt 0:01:09]} 11. O-O {[%emt 0:00:18]} O-O {[%emt 0:02:08]} 12. Rae1 {[%emt 0:00:07]} Ndf6 {[%emt 0:02:33]} 13. Nc1 {[%emt 0:00:15]} Ng7 {[%emt 0:05:12]} 14. f3 {[%emt 0:00:07]} c5 {[%emt 0:06:31]} 15. dxc5 {[%emt 0:00:43]} Qxc5 {[%emt 0:00:48]} 16. Nb3 {[%emt 0:00:20]} Qe7 {[%emt 0:01:14]} 17. Qd2 {[%emt 0:16:27]} Be6 {[%emt 0:06:43]} 18. Nd4 {[%emt 0:00:47]} Rfd8 {[%emt 0:00:56]} 19. Rc1 {[%emt 0:10:37]} Rac8 {[%emt 0:02:11]} 20. Nce2 {[%emt 0:05:26]} Re8 {[%emt 0:09:47]} 21. Rxc8 {[%emt 0:09:02]} Bxc8 {[%emt 0:02:33]} 22. Rc1 {[%emt 0:00:15]} Bd7 {[%emt 0:01:43]} 23. Rc7 {[%emt 0:06:30]} Qxe3+ {[%emt 0:08:12]} 24. Qxe3 {[%emt 0:00:07]} Rxe3 {[%emt 0:00:06]} 25. Bc2 {[%emt 0:00:25]} Bc6 {[%emt 0:08:40]} 26. Kf2 {[%emt 0:05:47]} Rxe2+ 27. Nxe2 Ne6 {[%emt 0:07:15]} 28. Rc8+ {[%emt 0:02:57]} Kg7 {[%emt 0:00:40]} 29. Ke3 {[%emt 0:06:50]} d4+ {[%emt 0:04:53]} 30. Kd2 {[%emt 0:00:05]} Nd5 {[%emt 0:01:49]} 31. Bb3 {[%emt 0:01:38]} Kf6 {[%emt 0:02:55]} 32. Bxd5 {[%emt 0:05:03]} Bxd5 {[%emt 0:00:05]} 33. Kd3 {[%emt 0:08:26]} Ke5 {[%emt 0:05:05]} 34. f4+ {[%emt 0:11:45]} Nxf4+ {[%emt 0:00:54]} 35. Nxf4 {[%emt 0:00:02]} Kxf4 {[%emt 0:00:06]} 36. g3+ {[%emt 0:00:10]} Ke5 {[%emt 0:00:26]} 37. Re8+ {[%emt 0:00:09]} Be6 {[%emt 0:00:50]} 38. Re7 {[%emt 0:00:22]} a6 {[%emt 0:02:10]} 39. b3 {[%emt 0:02:07]} b5 {[%emt 0:08:32]} 40. Ra7 {[%emt 0:00:04]} g5 {[%emt 0:00:19]} 41. Rxa6 {[%emt 0:00:31]} Bh3 {[%emt 0:00:29]} 42. Ra5 {[%emt 0:03:29]} Bf1+ {[%emt 0:00:09]} 43. Kd2 {[%emt 0:00:02]} Ke4 {[%emt 0:00:23]} 44. Ra7 {[%emt 0:00:53]} f5 {[%emt 0:00:32]} 45. Rxh7 {[%emt 0:00:18]} f4 {[%emt 0:00:45]} 46. gxf4 {[%emt 0:00:04]} gxf4 {[%emt 0:00:02]} 47. h4 {[%emt 0:00:25]} f3 {[%emt 0:00:13]} 48. Rf7 {[%emt 0:00:39]} Bh3 {[%emt 0:00:12]} 49. h5 {[%emt 0:00:20]} Bf5 {[%emt 0:03:59]} 50. h6 {[%emt 0:00:03]} d3 {[%emt 0:02:25]} 51. h7 {[%emt 0:00:19]} f2 {[%emt 0:00:21]} 52. Rxf5 {[%emt 0:09:31]} 1-0

[Event "XVI Memorial Lezcano Montalvo 2024"]
[Site "Gran Canaria"]
[Date "2024.03.29"]
[Round "7.5"]
[White "Dvirnyy, Danyyil"]
[Black "Van Zyl-Rudd, Jack"]
[Result "1-0"]
[ECO "D24"]
[WhiteElo "2482"]
[BlackElo "2264"]
[Annotator "TA"]
[PlyCount "73"]
[EventDate "2024.03.23"]
[EventType "swiss"]
[EventCountry "ESP"]
[SourceTitle "playchess.com"]
[Source "ChessBase"]
[SourceQuality "1"]
[TimeControl "5400+30"]

{[%evp 10,73,-15,-8,22,0,0,-53,-13,-18,-12,-15,-16,-8,0,-22,-18,-14,10,-43,0,0,15,0,17,0,129,127,220,154,209,3,7,0,0,-9,0,-2,0,-8,7,0,6,10,20,13,15,6,19,0,12,0,0,0,35,38,33,27,22,28,27,20,42,25,757,776]} 1. Nf3 {[%emt 0:00:10]} d5 {[%emt 0:08:17][%cal Bd7d5,Bd5c4][%mdl 32]} 2. d4 {[%emt 0:01:38]} Nf6 {[%emt 0:00:12]} 3. c4 {[%emt 0:03:29]} e6 {[%emt 0:00:06]} 4. Bg5 {[%emt 0:01:15]} dxc4 {[%emt 0:00:07]} 5. Nc3 {[%emt 0:02:16]} a6 {[%emt 0:06:04]} 6. a4 {[%emt 0:00:16]} c5 {[%emt 0:11:53]} 7. e3 {[%emt 0:01:49][%cal Be2e3,Be3e4][%mdl 32]} cxd4 {[%emt 0:02:46]} 8. Nxd4 {[%emt 0:09:12]} ({White should try} 8. Qxd4 $11 Qxd4 9. exd4) 8... Bd7 {[%emt 0:03:18] Black is slightly better.} 9. Bxc4 {[%emt 0:00:45]} Nc6 {[%emt 0:04:43]} 10. O-O {[%emt 0:00:41]} Be7 {[%emt 0:00:23]} 11. Nf3 {[%emt 0:02:08]} O-O {[%emt 0:00:20]} 12. e4 {[%emt 0:02:15]} Rc8 {[%emt 0:15:36]} 13. Qe2 {[%emt 0:02:45]} Qc7 {[%emt 0:09:37]} 14. Rad1 {[%emt 0:02:52]} (14. e5 $11 Ng4 15. Bxe7 Nxe7 16. Bd3) 14... Rfd8 {[%emt 0:03:00]} 15. e5 {[%emt 0:03:52]} Ng4 {[%emt 0:01:13][%cal Oe7g5]} 16. Bf4 {[%emt 0:00:36]} Ncxe5 {[%emt 0:02:38]} 17. Ba2 {[%emt 0:01:40][%cal Rf3e5]} (17. Nxe5 {simplifies} Nxe5 18. Ba2 f6 19. Bxe5 fxe5 20. Qg4) 17... Nxf3+ {[%emt 0:03:46]} (17... Bf6 $1 $11 {keeps the balance.}) 18. Qxf3 $16 {[%emt 0:02:03]} Ne5 {[%emt 0:00:02]} (18... e5 $16 19. Nd5 (19. Bxf7+ Kh8 $18) 19... Qc5) 19. Qh5 {[%emt 0:20:18]} g5 {[%emt 0:17:52] [#]} (19... Bf6 $16) 20. Bb1 $2 {[%emt 0:00:45]} (20. Bxg5 Bxg5 21. Qxg5+ Ng6) (20. Bg3 $1 $18 Qa5 21. Rd5 exd5 22. Bxe5) 20... f5 $1 $132 {[%emt 0:00:42][%mdl 2048] Black is not keeping still} ({Weaker is} 20... gxf4 21. Qxh7+ Kf8 22. Qh8#) ({Don't go for} 20... Nf3+ $2 21. gxf3 f5 22. Bxc7 $18) 21. Bxg5 {[%emt 0:09:44]} Be8 {[%emt 0:00:18]} 22. Qh4 {[%emt 0:01:00]} Ng6 {[%emt 0:03:27]} 23. Qh5 {[%emt 0:00:40]} Ne5 {[%emt 0:00:16]} 24. Qh4 {[%emt 0:00:21] Threatens to win with Ba2.} Ng6 {[%emt 0:00:07]} 25. Qh6 {[%emt 0:00:29]} Rxd1 {[%emt 0:02:00]} 26. Rxd1 {[%emt 0:00:07]} Bf7 {[%emt 0:01:42]} 27. Bxe7 {[%emt 0:01:08]} Qxe7 {[%emt 0:00:02]} 28. Qe3 {[%emt 0:00:30]} Rd8 {[%emt 0:00:14]} 29. Re1 {[%emt 0:00:28][%cal Ob1f5]} Qf6 {[%emt 0:03:34]} 30. Qb6 {[%emt 0:00:26]} Rd7 {[%emt 0:00:18]} 31. Ba2 {[%emt 0:00:17][%cal Oa2d5]} Re7 {[%emt 0:00:27]} 32. g3 {[%emt 0:00:27] [#] Strongly threatening Nd5.} Kg7 $1 {[%emt 0:00:07]} 33. Qc5 {[%emt 0:00:51]} e5 {[%emt 0:01:12]} 34. Bxf7 {[%emt 0:03:21]} Rxf7 {[%emt 0:00:01]} 35. Rd1 {[%emt 0:00:25]} h5 {[%emt 0:00:57]} 36. h4 {[%emt 0:01:12] Rd6 is the strong threat.} Re7 $2 {[%emt 0:00:37][%mdl 8192]} (36... f4 $11) 37. Nd5 $1 {[%emt 0:00:23][%csl LRe7,LRf6] Weighted Error Value: White=0.19 (very precise) /Black=0.22 (precise) .  Loses game:     	---       	Black=1      Missed win:     	White=1     	---        Mistake:       	White=2     	Black=3      Inaccurate:     	---       	Black=3      OK:         	White=10    	Black=4      Best:        	White=2     	Black=1      Strong:       	---       	Black=2} 1-0